[Event "*** Titled Tuesday Blitz"]
[Site "Chess.com"]
[Date "2020.11.03"]
[Round "6"]
[White "chito89"]
[Black "Beca95"]
[Result "0-1"]
[WhiteElo "2783"]
[BlackElo "2957"]
[TimeControl "180+1"]
[EndTime "11:10:35 PST"]
[Termination "Beca95 won on time"]

1. c4 {[%clk 0:02:58.7]} 1... e5 {[%clk 0:02:57]} 2. Nc3 {[%clk 0:02:58]} 2...
Bb4 {[%clk 0:02:57.6]} 3. Nf3 {[%clk 0:02:56.4]} 3... Bxc3 {[%clk 0:02:56.1]} 4.
bxc3 {[%clk 0:02:56.1]} 4... d6 {[%clk 0:02:55.4]} 5. g3 {[%clk 0:02:54.7]} 5...
f5 {[%clk 0:02:54.5]} 6. Bg2 {[%clk 0:02:54.4]} 6... Qe7 {[%clk 0:02:54.8]} 7.
O-O {[%clk 0:02:54.1]} 7... Nf6 {[%clk 0:02:54.8]} 8. Rb1 {[%clk 0:02:53.8]}
8... Nc6 {[%clk 0:02:52.3]} 9. d3 {[%clk 0:02:34.9]} 9... O-O {[%clk 0:02:51.5]}
10. Bg5 {[%clk 0:02:32.1]} 10... h6 {[%clk 0:02:44.6]} 11. Bxf6 {[%clk
0:02:31.2]} 11... Qxf6 {[%clk 0:02:45.5]} 12. Nd2 {[%clk 0:02:27.6]} 12... Kh8
{[%clk 0:02:44.6]} 13. Qa4 {[%clk 0:02:25.7]} 13... Nd8 {[%clk 0:02:38.8]} 14.
c5 {[%clk 0:02:02.7]} 14... dxc5 {[%clk 0:02:24.6]} 15. Qa3 {[%clk 0:02:02.1]}
15... c6 {[%clk 0:02:19]} 16. Qxc5 {[%clk 0:02:00.7]} 16... b6 {[%clk 0:02:16]}
17. Qa3 {[%clk 0:01:49.5]} 17... Bb7 {[%clk 0:02:15]} 18. Nc4 {[%clk 0:01:48.2]}
18... Nf7 {[%clk 0:02:11.6]} 19. Na5 {[%clk 0:01:35.6]} 19... Rfb8 {[%clk
0:02:10.3]} 20. Nxb7 {[%clk 0:01:24.6]} 20... Rxb7 {[%clk 0:02:11.2]} 21. Qa4
{[%clk 0:01:22.9]} 21... Rc8 {[%clk 0:02:08.1]} 22. f4 {[%clk 0:01:13.2]} 22...
Re7 {[%clk 0:02:04.3]} 23. e4 {[%clk 0:00:50.7]} 23... exf4 {[%clk 0:02:01.2]}
24. Rxf4 {[%clk 0:00:51.6]} 24... Qxc3 {[%clk 0:01:59.8]} 25. exf5 {[%clk
0:00:40.6]} 25... Qf6 {[%clk 0:01:58.9]} 26. Re4 {[%clk 0:00:33.2]} 26... Rxe4
{[%clk 0:01:44.3]} 27. Qxe4 {[%clk 0:00:33]} 27... c5 {[%clk 0:01:43.7]} 28. Re1
{[%clk 0:00:31.5]} 28... Rd8 {[%clk 0:01:44]} 29. h3 {[%clk 0:00:29.2]} 29...
Ng5 {[%clk 0:01:31.5]} 30. Qe7 {[%clk 0:00:22.7]} 30... Rxd3 {[%clk 0:01:18]}
31. h4 {[%clk 0:00:21.8]} 31... Nf3+ {[%clk 0:01:15.9]} 32. Bxf3 {[%clk
0:00:20.9]} 32... Rxf3 {[%clk 0:01:16.7]} 33. Qxf6 {[%clk 0:00:17.9]} 33... gxf6
{[%clk 0:01:17.6]} 34. Re8+ {[%clk 0:00:17.2]} 34... Kg7 {[%clk 0:01:15.9]} 35.
Re7+ {[%clk 0:00:16.1]} 35... Kf8 {[%clk 0:01:14.8]} 36. Rxa7 {[%clk 0:00:17]}
36... Rxg3+ {[%clk 0:01:14.9]} 37. Kf2 {[%clk 0:00:17.5]} 37... Rg4 {[%clk
0:01:14.8]} 38. Rb7 {[%clk 0:00:10.3]} 38... Rxh4 {[%clk 0:01:14.8]} 39. Rxb6
{[%clk 0:00:10.5]} 39... Rf4+ {[%clk 0:01:14.9]} 40. Ke3 {[%clk 0:00:11.1]}
40... Rxf5 {[%clk 0:01:15.8]} 41. a4 {[%clk 0:00:12]} 41... Kg7 {[%clk
0:01:13.6]} 42. a5 {[%clk 0:00:10.6]} 42... c4 {[%clk 0:01:12.6]} 43. a6 {[%clk
0:00:11]} 43... Ra5 {[%clk 0:01:11.8]} 44. Kd4 {[%clk 0:00:11.9]} 44... Ra4
{[%clk 0:01:10.8]} 45. Kc5 {[%clk 0:00:09.2]} 45... h5 {[%clk 0:01:04.2]} 46.
Kb5 {[%clk 0:00:10.1]} 46... Ra1 {[%clk 0:01:04]} 47. Kxc4 {[%clk 0:00:08.9]}
47... Kg6 {[%clk 0:01:03]} 48. Kb5 {[%clk 0:00:04.8]} 48... h4 {[%clk
0:01:02.8]} 49. Rc6 {[%clk 0:00:04.6]} 49... Kg5 {[%clk 0:01:00.2]} 50. Kb6
{[%clk 0:00:03.5]} 50... h3 {[%clk 0:00:58.1]} 51. Rc3 {[%clk 0:00:03.3]} 51...
h2 {[%clk 0:00:53.8]} 0-1

[Event "*** Titled Tuesday Blitz"]
[Site "Chess.com"]
[Date "2020.11.03"]
[Round "6"]
[White "Iskusnyh"]
[Black "Atousa1"]
[Result "1/2-1/2"]
[WhiteElo "2576"]
[BlackElo "2424"]
[TimeControl "180+1"]
[EndTime "11:10:36 PST"]
[Termination "Game drawn by repetition"]

1. d4 {[%clk 0:03:00.9]} 1... Nf6 {[%clk 0:02:59.7]} 2. c4 {[%clk 0:03:00.6]}
2... e6 {[%clk 0:03:00]} 3. g3 {[%clk 0:03:00.7]} 3... d5 {[%clk 0:02:58.5]} 4.
Nf3 {[%clk 0:03:00.2]} 4... Be7 {[%clk 0:02:58.8]} 5. Bg2 {[%clk 0:02:59.6]}
5... O-O {[%clk 0:02:59]} 6. O-O {[%clk 0:03:00.1]} 6... dxc4 {[%clk 0:02:59.6]}
7. Qa4 {[%clk 0:02:59.1]} 7... a6 {[%clk 0:02:52.4]} 8. Qxc4 {[%clk 0:02:58.8]}
8... b5 {[%clk 0:02:51.6]} 9. Qc2 {[%clk 0:02:59.4]} 9... Bb7 {[%clk 0:02:51.5]}
10. Bd2 {[%clk 0:03:00]} 10... Be4 {[%clk 0:02:40]} 11. Qc1 {[%clk 0:02:59]}
11... Bb7 {[%clk 0:02:35.8]} 12. Rd1 {[%clk 0:02:51.9]} 12... Nbd7 {[%clk
0:02:21]} 13. Ba5 {[%clk 0:02:50.4]} 13... Rc8 {[%clk 0:02:16.6]} 14. Nbd2
{[%clk 0:02:44.1]} 14... Qe8 {[%clk 0:02:08.6]} 15. b4 {[%clk 0:02:42.6]} 15...
Bd6 {[%clk 0:02:04.1]} 16. Nb3 {[%clk 0:02:22.6]} 16... e5 {[%clk 0:01:44.2]}
17. Nxe5 {[%clk 0:02:05.2]} 17... Bxg2 {[%clk 0:01:45.1]} 18. Nxd7 {[%clk
0:02:03.6]} 18... Nxd7 {[%clk 0:01:36.7]} 19. Kxg2 {[%clk 0:02:02.7]} 19... Qxe2
{[%clk 0:01:36.7]} 20. Qe3 {[%clk 0:01:53.8]} 20... Rfe8 {[%clk 0:01:30.6]} 21.
Qxe2 {[%clk 0:01:48.3]} 21... Rxe2 {[%clk 0:01:31.5]} 22. Nc5 {[%clk 0:01:46.3]}
22... Nf6 {[%clk 0:01:14.4]} 23. Kf3 {[%clk 0:01:19.7]} 23... Rce8 {[%clk
0:01:05.4]} 24. Nxa6 {[%clk 0:01:18.8]} 24... Nd5 {[%clk 0:01:05.2]} 25. Nc5
{[%clk 0:01:12]} 25... g5 {[%clk 0:00:59.3]} 26. h3 {[%clk 0:01:10.5]} 26... h5
{[%clk 0:00:57.6]} 27. Nd3 {[%clk 0:00:49.3]} 27... Nc3 {[%clk 0:00:31.7]} 28.
Rdc1 {[%clk 0:00:43.6]} 28... Nxa2 {[%clk 0:00:28.4]} 29. Rc6 {[%clk 0:00:41.7]}
29... Rd2 {[%clk 0:00:23.6]} 30. Ne5 {[%clk 0:00:34.8]} 30... Rxd4 {[%clk
0:00:20.6]} 31. Rxa2 {[%clk 0:00:24.3]} 31... Bxe5 {[%clk 0:00:20]} 32. Bxc7
{[%clk 0:00:24.3]} 32... Bxc7 {[%clk 0:00:17.8]} 33. Rxc7 {[%clk 0:00:23.9]}
33... Rxb4 {[%clk 0:00:18.1]} 34. Raa7 {[%clk 0:00:22.9]} 34... Rf8 {[%clk
0:00:17.2]} 35. Rc5 {[%clk 0:00:22.8]} 35... g4+ {[%clk 0:00:15.6]} 36. Kg2
{[%clk 0:00:20.4]} 36... gxh3+ {[%clk 0:00:15.8]} 37. Kxh3 {[%clk 0:00:20.5]}
37... Rb2 {[%clk 0:00:15.8]} 38. Rg5+ {[%clk 0:00:20.3]} 38... Kh7 {[%clk
0:00:15.8]} 39. Rxh5+ {[%clk 0:00:20.8]} 39... Kg6 {[%clk 0:00:16.7]} 40. Rc5
{[%clk 0:00:19.9]} 40... Rxf2 {[%clk 0:00:16.7]} 41. Ra6+ {[%clk 0:00:19.4]}
41... Rf6 {[%clk 0:00:16.5]} 42. Rxf6+ {[%clk 0:00:18.4]} 42... Kxf6 {[%clk
0:00:16.7]} 43. Rxb5 {[%clk 0:00:18.6]} 43... Kg6 {[%clk 0:00:17.2]} 44. Kg4
{[%clk 0:00:18.6]} 44... f6 {[%clk 0:00:17.6]} 45. Rb6 {[%clk 0:00:18.5]} 45...
Re8 {[%clk 0:00:18]} 46. Rb4 {[%clk 0:00:18.9]} 46... Re5 {[%clk 0:00:18]} 47.
Ra4 {[%clk 0:00:18.9]} 47... Rg5+ {[%clk 0:00:18.5]} 48. Kf3 {[%clk 0:00:17]}
48... Rf5+ {[%clk 0:00:18.9]} 49. Rf4 {[%clk 0:00:16.7]} 49... Re5 {[%clk
0:00:18.5]} 50. Re4 {[%clk 0:00:16.1]} 50... Rf5+ {[%clk 0:00:18.8]} 51. Rf4
{[%clk 0:00:16]} 51... Re5 {[%clk 0:00:19]} 52. Re4 {[%clk 0:00:16.4]} 52...
Rf5+ {[%clk 0:00:19.5]} 53. Rf4 {[%clk 0:00:17]} 1/2-1/2

[Event "*** Titled Tuesday Blitz"]
[Site "Chess.com"]
[Date "2020.11.03"]
[Round "6"]
[White "Firouzja2003"]
[Black "AlexOstrovskiy"]
[Result "1-0"]
[WhiteElo "3060"]
[BlackElo "2796"]
[TimeControl "180+1"]
[EndTime "11:10:37 PST"]
[Termination "Firouzja2003 won by resignation"]

1. g3 {[%clk 0:03:00.9]} 1... d5 {[%clk 0:02:51.8]} 2. Bg2 {[%clk 0:03:01.8]}
2... e5 {[%clk 0:02:52.1]} 3. e3 {[%clk 0:03:02.4]} 3... c6 {[%clk 0:02:49]} 4.
Ne2 {[%clk 0:03:02.2]} 4... Bd6 {[%clk 0:02:48.7]} 5. d4 {[%clk 0:03:02.4]} 5...
e4 {[%clk 0:02:47.8]} 6. c4 {[%clk 0:03:03.1]} 6... Ne7 {[%clk 0:02:43.2]} 7.
Nbc3 {[%clk 0:03:03]} 7... a6 {[%clk 0:02:43.2]} 8. Qb3 {[%clk 0:03:03]} 8... b5
{[%clk 0:02:38.8]} 9. cxd5 {[%clk 0:02:54.7]} 9... cxd5 {[%clk 0:02:39.7]} 10.
O-O {[%clk 0:02:52.7]} 10... Be6 {[%clk 0:02:25.4]} 11. f3 {[%clk 0:02:49.7]}
11... b4 {[%clk 0:02:21.3]} 12. Na4 {[%clk 0:02:45.3]} 12... O-O {[%clk
0:02:15.4]} 13. Nc5 {[%clk 0:02:41.3]} 13... exf3 {[%clk 0:02:06.8]} 14. Nxe6
{[%clk 0:02:18.1]} 14... fxe6 {[%clk 0:02:00.9]} 15. Rxf3 {[%clk 0:02:18.4]}
15... Rxf3 {[%clk 0:01:55.3]} 16. Bxf3 {[%clk 0:02:19.3]} 16... Nbc6 {[%clk
0:01:56.1]} 17. Bd2 {[%clk 0:02:19.3]} 17... Qd7 {[%clk 0:01:55.7]} 18. Qd3
{[%clk 0:02:15]} 18... a5 {[%clk 0:01:47]} 19. Rc1 {[%clk 0:02:13.5]} 19... Qb7
{[%clk 0:01:29.3]} 20. Bg4 {[%clk 0:02:11.9]} 20... Nd8 {[%clk 0:01:22.6]} 21.
Nf4 {[%clk 0:02:11.1]} 21... Bxf4 {[%clk 0:01:21.2]} 22. exf4 {[%clk 0:02:10.4]}
22... Rc8 {[%clk 0:01:16.8]} 23. Re1 {[%clk 0:02:10.3]} 23... Rc6 {[%clk
0:01:11.2]} 24. f5 {[%clk 0:02:03.8]} 24... exf5 {[%clk 0:00:55.8]} 25. Bxf5
{[%clk 0:02:04]} 25... Nxf5 {[%clk 0:00:56.7]} 26. Qxf5 {[%clk 0:02:03.9]} 26...
Qf7 {[%clk 0:00:57.3]} 27. Qg5 {[%clk 0:01:55.3]} 27... Rd6 {[%clk 0:00:23.9]}
28. Bf4 {[%clk 0:01:29.2]} 28... Rd7 {[%clk 0:00:22.6]} 29. Qe5 {[%clk
0:01:24.6]} 29... h6 {[%clk 0:00:21.7]} 30. Qb8 {[%clk 0:01:18.5]} 30... Kh7
{[%clk 0:00:20.9]} 31. Qb5 {[%clk 0:01:18.1]} 31... Ne6 {[%clk 0:00:19.8]} 32.
Rf1 {[%clk 0:01:08.6]} 32... Nxf4 {[%clk 0:00:16.4]} 33. Rxf4 {[%clk 0:01:08.2]}
33... Qe6 {[%clk 0:00:16.6]} 34. Qd3+ {[%clk 0:01:01]} 34... Qg6 {[%clk
0:00:16.2]} 35. Qf5 {[%clk 0:00:55]} 35... Qxf5 {[%clk 0:00:14.7]} 36. Rxf5
{[%clk 0:00:55.9]} 36... Kg6 {[%clk 0:00:13.6]} 37. Re5 {[%clk 0:00:53.1]} 37...
Kf6 {[%clk 0:00:13.3]} 38. Kg2 {[%clk 0:00:53.6]} 38... a4 {[%clk 0:00:13.2]}
39. Kf3 {[%clk 0:00:51.9]} 39... Rc7 {[%clk 0:00:11]} 40. Rxd5 {[%clk
0:00:46.9]} 40... Rc2 {[%clk 0:00:11]} 41. Ra5 {[%clk 0:00:46.9]} 41... Rxb2
{[%clk 0:00:05.4]} 42. Rxa4 {[%clk 0:00:47.3]} 42... b3 {[%clk 0:00:06]} 43.
axb3 {[%clk 0:00:46.1]} 43... Rxb3+ {[%clk 0:00:06.9]} 44. Ke4 {[%clk
0:00:46.2]} 44... Rb6 {[%clk 0:00:05.7]} 45. d5 {[%clk 0:00:43.2]} 45... h5
{[%clk 0:00:04.9]} 46. Kd4 {[%clk 0:00:42.9]} 46... g5 {[%clk 0:00:04.1]} 47.
Kc5 {[%clk 0:00:42.9]} 47... Rb1 {[%clk 0:00:04.7]} 48. d6 {[%clk 0:00:41.8]}
48... Rc1+ {[%clk 0:00:04.7]} 49. Rc4 {[%clk 0:00:41.7]} 49... Ra1 {[%clk
0:00:04.6]} 50. Rd4 {[%clk 0:00:41.6]} 50... Rc1+ {[%clk 0:00:02.1]} 51. Kb6
{[%clk 0:00:41.9]} 51... Rb1+ {[%clk 0:00:02.4]} 52. Kc7 {[%clk 0:00:42.4]}
52... Rc1+ {[%clk 0:00:03]} 53. Kd8 {[%clk 0:00:42.8]} 53... Kf5 {[%clk
0:00:03.3]} 54. d7 {[%clk 0:00:42.4]} 54... h4 {[%clk 0:00:01.8]} 55. gxh4
{[%clk 0:00:42.3]} 55... gxh4 {[%clk 0:00:02.7]} 56. Rxh4 {[%clk 0:00:41.7]} 1-0

[Event "*** Titled Tuesday Blitz"]
[Site "Chess.com"]
[Date "2020.11.03"]
[Round "6"]
[White "ChessLover0108"]
[Black "elohunter1999"]
[Result "0-1"]
[WhiteElo "2819"]
[BlackElo "2526"]
[TimeControl "180+1"]
[EndTime "11:10:40 PST"]
[Termination "elohunter1999 won by checkmate"]

1. d4 {[%clk 0:03:00.9]} 1... d5 {[%clk 0:02:59.9]} 2. c4 {[%clk 0:03:01.1]}
2... c6 {[%clk 0:03:00.2]} 3. Nc3 {[%clk 0:03:00.6]} 3... Nf6 {[%clk 0:02:59.9]}
4. e3 {[%clk 0:03:00.2]} 4... Bf5 {[%clk 0:02:59.8]} 5. cxd5 {[%clk 0:02:58.8]}
5... cxd5 {[%clk 0:03:00.1]} 6. Qb3 {[%clk 0:02:59.3]} 6... Nc6 {[%clk
0:02:58.8]} 7. Qxb7 {[%clk 0:02:54.4]} 7... Bd7 {[%clk 0:02:58.7]} 8. Qb3 {[%clk
0:02:33.4]} 8... Rb8 {[%clk 0:02:58.7]} 9. Qd1 {[%clk 0:02:33.3]} 9... e5 {[%clk
0:02:59.2]} 10. dxe5 {[%clk 0:02:32.9]} 10... Nxe5 {[%clk 0:02:59]} 11. Nf3
{[%clk 0:02:31.4]} 11... Nxf3+ {[%clk 0:02:42.2]} 12. Qxf3 {[%clk 0:02:32.3]}
12... Bd6 {[%clk 0:02:41.9]} 13. h3 {[%clk 0:02:28.6]} 13... O-O {[%clk
0:02:41.3]} 14. Bd3 {[%clk 0:02:28.9]} 14... Re8 {[%clk 0:02:21.3]} 15. O-O
{[%clk 0:02:27.7]} 15... Qc7 {[%clk 0:02:07.1]} 16. Nxd5 {[%clk 0:02:19.9]}
16... Nxd5 {[%clk 0:01:58.7]} 17. Qxd5 {[%clk 0:02:20.8]} 17... Bc6 {[%clk
0:01:45.2]} 18. Qc4 {[%clk 0:02:13.2]} 18... Rb4 {[%clk 0:01:43.1]} 19. Qc2
{[%clk 0:02:03]} 19... Re6 {[%clk 0:01:36]} 20. f3 {[%clk 0:01:46.4]} 20... Rh4
{[%clk 0:01:21.6]} 21. Bd2 {[%clk 0:01:25.7]} 21... Bh2+ {[%clk 0:01:13.9]} 22.
Kh1 {[%clk 0:01:25.1]} 22... Reh6 {[%clk 0:00:57.4]} 23. Bf5 {[%clk 0:00:37.7]}
23... g6 {[%clk 0:00:34.6]} 24. e4 {[%clk 0:00:17.6]} 24... gxf5 {[%clk
0:00:29]} 25. Bxh6 {[%clk 0:00:17.6]} 25... Rxh6 {[%clk 0:00:27.9]} 26. Rac1
{[%clk 0:00:15.6]} 26... Qg3 {[%clk 0:00:18.2]} 27. Qd2 {[%clk 0:00:05.2]} 27...
Rg6 {[%clk 0:00:11.8]} 28. exf5 {[%clk 0:00:04]} 28... Rd6 {[%clk 0:00:11.5]}
29. Qe2 {[%clk 0:00:03.1]} 29... Qe5 {[%clk 0:00:09.7]} 30. Qxe5 {[%clk
0:00:01.4]} 30... Bxe5 {[%clk 0:00:10.6]} 31. f4 {[%clk 0:00:01.8]} 31... Bxb2
{[%clk 0:00:10.4]} 32. Kh2 {[%clk 0:00:02.7]} 32... Bxc1 {[%clk 0:00:10.4]} 33.
Rxc1 {[%clk 0:00:03.6]} 33... Kg7 {[%clk 0:00:09.9]} 34. g4 {[%clk 0:00:03.9]}
34... Rd2+ {[%clk 0:00:09.8]} 35. Kg3 {[%clk 0:00:04.4]} 35... Bd5 {[%clk
0:00:08.9]} 36. Rc7 {[%clk 0:00:04.2]} 36... Rxa2 {[%clk 0:00:07.5]} 37. Kh4
{[%clk 0:00:02.7]} 37... Ra3 {[%clk 0:00:07]} 38. Rd7 {[%clk 0:00:01.5]} 38...
Bg2 {[%clk 0:00:06.9]} 39. Kg5 {[%clk 0:00:01.7]} 39... h6+ {[%clk 0:00:06.4]}
40. Kh5 {[%clk 0:00:01.7]} 40... Rxh3# {[%clk 0:00:07.3]} 0-1

[Event "*** Titled Tuesday Blitz"]
[Site "Chess.com"]
[Date "2020.11.03"]
[Round "6"]
[White "Skatchkov_V"]
[Black "Meri-Arabidze"]
[Result "0-1"]
[WhiteElo "2489"]
[BlackElo "2661"]
[TimeControl "180+1"]
[EndTime "11:10:41 PST"]
[Termination "Meri-Arabidze won by resignation"]

1. d4 {[%clk 0:03:00.7]} 1... d5 {[%clk 0:02:59.7]} 2. c4 {[%clk 0:03:00.9]}
2... e6 {[%clk 0:02:59.7]} 3. Nc3 {[%clk 0:03:01.2]} 3... Nf6 {[%clk 0:03:00.2]}
4. e3 {[%clk 0:03:01.6]} 4... Nbd7 {[%clk 0:02:59.6]} 5. Nf3 {[%clk 0:02:57]}
5... a6 {[%clk 0:02:59.9]} 6. b3 {[%clk 0:02:53.2]} 6... c5 {[%clk 0:02:58.2]}
7. Bb2 {[%clk 0:02:51.7]} 7... cxd4 {[%clk 0:02:58.2]} 8. exd4 {[%clk
0:02:51.9]} 8... Bd6 {[%clk 0:02:57]} 9. Bd3 {[%clk 0:02:39.7]} 9... O-O {[%clk
0:02:56.8]} 10. O-O {[%clk 0:02:40.1]} 10... b6 {[%clk 0:02:57]} 11. Re1 {[%clk
0:02:24.4]} 11... dxc4 {[%clk 0:02:56.5]} 12. bxc4 {[%clk 0:02:24]} 12... Bb7
{[%clk 0:02:57.1]} 13. Rc1 {[%clk 0:02:17.1]} 13... Qc7 {[%clk 0:02:55.1]} 14.
h3 {[%clk 0:02:06.2]} 14... Bf4 {[%clk 0:02:55.2]} 15. Rc2 {[%clk 0:02:02.1]}
15... Rfd8 {[%clk 0:02:55.8]} 16. d5 {[%clk 0:01:49]} 16... Nf8 {[%clk
0:02:52.7]} 17. Ne4 {[%clk 0:01:36.4]} 17... Nxe4 {[%clk 0:02:50]} 18. Bxe4
{[%clk 0:01:34.2]} 18... exd5 {[%clk 0:02:48.8]} 19. cxd5 {[%clk 0:01:25]} 19...
Qd7 {[%clk 0:02:48.9]} 20. Qd4 {[%clk 0:01:19.1]} 20... f6 {[%clk 0:02:26.7]}
21. Qxb6 {[%clk 0:01:10.1]} 21... Rab8 {[%clk 0:02:13.1]} 22. Qd4 {[%clk
0:01:02.9]} 22... Bh6 {[%clk 0:01:59.4]} 23. Rd1 {[%clk 0:01:02.1]} 23... Qd6
{[%clk 0:01:51.9]} 24. Nh4 {[%clk 0:01:00.6]} 24... Qf4 {[%clk 0:01:31.1]} 25.
Nf5 {[%clk 0:00:47.1]} 25... Re8 {[%clk 0:01:31.2]} 26. Nxh6+ {[%clk 0:00:45.4]}
26... Qxh6 {[%clk 0:01:31.6]} 27. Bf3 {[%clk 0:00:39.7]} 27... Nd7 {[%clk
0:01:22.7]} 28. Bg4 {[%clk 0:00:33.5]} 28... Ne5 {[%clk 0:01:19.2]} 29. Be6+
{[%clk 0:00:34]} 29... Kh8 {[%clk 0:01:19.7]} 30. Qe3 {[%clk 0:00:23.8]} 30...
Qg6 {[%clk 0:01:15]} 31. Rc7 {[%clk 0:00:20.7]} 31... Ba8 {[%clk 0:00:51.6]} 32.
Bxe5 {[%clk 0:00:19.1]} 32... Rxe6 {[%clk 0:00:51.8]} 33. Qa7 {[%clk 0:00:13]}
33... Rbe8 {[%clk 0:00:48.6]} 34. Bg3 {[%clk 0:00:13.3]} 34... Re1+ {[%clk
0:00:30.5]} 35. Rxe1 {[%clk 0:00:13.6]} 35... Rxe1+ {[%clk 0:00:31.4]} 36. Kh2
{[%clk 0:00:14.2]} 36... Bxd5 {[%clk 0:00:31.9]} 37. Qxa6 {[%clk 0:00:12.6]}
37... h6 {[%clk 0:00:24.2]} 38. Qa4 {[%clk 0:00:05.3]} 38... Qf5 {[%clk
0:00:20.5]} 39. Qf4 {[%clk 0:00:03.9]} 39... Rh1+ {[%clk 0:00:19.6]} 40. Kxh1
{[%clk 0:00:04]} 40... Qxh3+ {[%clk 0:00:19.9]} 0-1

[Event "*** Titled Tuesday Blitz"]
[Site "Chess.com"]
[Date "2020.11.03"]
[Round "6"]
[White "Gabrielian_Artur"]
[Black "rasmussvane"]
[Result "1-0"]
[WhiteElo "2799"]
[BlackElo "2929"]
[TimeControl "180+1"]
[EndTime "11:10:42 PST"]
[Termination "Gabrielian_Artur won on time"]

1. e4 {[%clk 0:03:00.9]} 1... c6 {[%clk 0:03:00.2]} 2. d4 {[%clk 0:02:59.4]}
2... d5 {[%clk 0:03:01.1]} 3. Nd2 {[%clk 0:02:58.8]} 3... dxe4 {[%clk
0:03:01.4]} 4. Nxe4 {[%clk 0:02:59.1]} 4... Nf6 {[%clk 0:03:02]} 5. Nxf6+ {[%clk
0:02:59.1]} 5... exf6 {[%clk 0:03:02.9]} 6. c3 {[%clk 0:02:59.5]} 6... Bd6
{[%clk 0:03:03.6]} 7. Bd3 {[%clk 0:02:59.7]} 7... O-O {[%clk 0:03:04.3]} 8. Qc2
{[%clk 0:03:00.1]} 8... Re8+ {[%clk 0:03:05]} 9. Ne2 {[%clk 0:03:00.4]} 9... h5
{[%clk 0:03:05.6]} 10. O-O {[%clk 0:03:00.5]} 10... h4 {[%clk 0:03:06]} 11. h3
{[%clk 0:03:00.9]} 11... Nd7 {[%clk 0:03:05.5]} 12. Bd2 {[%clk 0:02:56.7]} 12...
Nf8 {[%clk 0:03:05.7]} 13. Rad1 {[%clk 0:02:42.5]} 13... Be6 {[%clk 0:03:05.7]}
14. c4 {[%clk 0:02:36.5]} 14... Rc8 {[%clk 0:03:05.5]} 15. Rfe1 {[%clk
0:02:35.8]} 15... Bb8 {[%clk 0:03:05.6]} 16. Bf4 {[%clk 0:02:22.1]} 16... Bxf4
{[%clk 0:02:52.1]} 17. Nxf4 {[%clk 0:02:21.8]} 17... Qd6 {[%clk 0:02:50.7]} 18.
Qc1 {[%clk 0:02:13.1]} 18... g6 {[%clk 0:02:47.7]} 19. c5 {[%clk 0:01:44.3]}
19... Qc7 {[%clk 0:02:39.5]} 20. Re4 {[%clk 0:01:26.7]} 20... Bxa2 {[%clk
0:02:31.2]} 21. Qe3 {[%clk 0:01:12.7]} 21... Qd7 {[%clk 0:02:17.1]} 22. Re1
{[%clk 0:01:07.2]} 22... Rxe4 {[%clk 0:02:15.6]} 23. Qxe4 {[%clk 0:01:04.3]}
23... Rd8 {[%clk 0:01:08.7]} 24. Ne2 {[%clk 0:00:59.2]} 24... Ne6 {[%clk
0:01:02.9]} 25. Qxh4 {[%clk 0:00:50]} 25... Kg7 {[%clk 0:01:03.2]} 26. Qg3
{[%clk 0:00:37]} 26... Nxd4 {[%clk 0:00:57.6]} 27. Nf4 {[%clk 0:00:36.6]} 27...
Kf8 {[%clk 0:00:45.4]} 28. Bxg6 {[%clk 0:00:35.7]} 28... fxg6 {[%clk 0:00:44]}
29. Nxg6+ {[%clk 0:00:34]} 29... Kf7 {[%clk 0:00:44.5]} 30. Nf4 {[%clk
0:00:14.5]} 30... Rg8 {[%clk 0:00:40.3]} 31. Qd3 {[%clk 0:00:14.4]} 31... Rg5
{[%clk 0:00:04.1]} 32. Rd1 {[%clk 0:00:07.9]} 32... Rxc5 {[%clk 0:00:01.9]} 33.
Qh7+ {[%clk 0:00:07.1]} 33... Ke8 {[%clk 0:00:02.1]} 34. Qh8+ {[%clk 0:00:06.7]}
34... Ke7 {[%clk 0:00:02.3]} 35. Ng6+ {[%clk 0:00:07.1]} 35... Ke6 {[%clk
0:00:01.6]} 36. Nf8+ {[%clk 0:00:06.2]} 36... Ke7 {[%clk 0:00:01.7]} 37. Nxd7
{[%clk 0:00:06.6]} 37... Ne6 {[%clk 0:00:02]} 38. Nxf6 {[%clk 0:00:05.9]} 38...
Rd5 {[%clk 0:00:01.4]} 39. Nxd5+ {[%clk 0:00:05.6]} 39... Bxd5 {[%clk
0:00:01.5]} 40. Re1 {[%clk 0:00:06.5]} 40... Kd6 {[%clk 0:00:01.7]} 41. Qe5+
{[%clk 0:00:06.7]} 1-0